bitfinex-derivatives/quotes_ETHF0:USTF0_20260214
["timestamp","ask_amount","ask_price","bid_price","bid_amount"]
[1771083660442,0.52774468,2085.6,2083.8,14.97717851]
[1771083660740,0.52774468,2085.2,2084.2,0.57400671]
[1771083660942,0.52774468,2085.0,2084.2,0.57400671]
[1771083661245,0.52774468,2085.0,2084.2,0.57991076]
[1771083662136,0.52774468,2085.0,2084.4,0.57299575]
[1771083667552,0.52774468,2085.0,2084.3,0.23997]
[1771083667743,0.52774468,2085.0,2084.4,0.57299575]
[1771083668248,0.52774468,2085.0,2084.3,0.81296575]
[1771083668445,0.52774468,2085.0,2084.2,0.5788998]
[1771083670652,0.52774468,2085.0,2084.3,0.57299575]
[1771083670952,18.94974468,2085.0,2084.3,0.57299575]
[1771083671151,18.94974468,2085.0,2084.5,0.57299575]
[1771083671344,10.30032063,2085.2,2084.5,0.57299575]
[1771083671541,0.53732063,2085.1,2084.5,0.57299575]
[1771083671946,0.53732063,2085.1,2084.4,0.23996]
[1771083674150,18.454,2085.0,2084.5,0.57299575]
[1771083674351,0.53732063,2084.9,2084.5,0.57299575]
[1771083675853,18.454,2085.0,2084.5,0.57299575]
[1771083676055,0.53732063,2085.1,2084.5,0.57299575]
[1771083676253,19.00732063,2085.1,2084.5,0.57299575]
[1771083676453,0.53732063,2085.6,2084.9,0.57299575]
[1771083676654,0.53732063,2085.4,2084.8,0.23991]
[1771083676855,0.53732063,2085.4,2084.8,0.81290575]
[1771083677049,0.53732063,2085.2,2084.8,0.23991]
[1771083677353,0.53732063,2085.2,2084.8,0.81290575]
[1771083677753,40.8,2085.3,2084.9,0.57299575]
[1771083677948,0.53732063,2085.2,2084.9,0.57299575]
[1771083679356,0.53732063,2085.2,2084.8,0.81290575]
[1771083679951,0.53732063,2085.2,2084.9,0.57299575]
[1771083681052,40.8,2085.4,2084.9,0.57299575]
[1771083681257,18.537,2085.4,2084.9,0.57299575]
[1771083681651,19.07432063,2085.4,2084.9,0.57299575]
[1771083682553,0.53732063,2085.3,2084.9,0.57299575]
[1771083683951,19.09832063,2085.5,2084.9,0.57299575]
[1771083684261,0.53732063,2085.6,2085.1,0.57299575]
[1771083685057,45.31860879,2085.7,2085.3,0.57299575]
[1771083685256,4.51860879,2085.7,2085.3,0.57299575]
[1771083685556,0.54160879,2085.7,2085.3,0.57299575]
[1771083685756,0.00428816,2085.7,2085.3,0.57299575]
[1771083685954,0.54160879,2085.7,2085.3,0.57299575]
[1771083686857,0.54160879,2085.7,2085.2,0.81285575]
[1771083687766,0.54160879,2085.7,2085.3,0.57299575]
[1771083687955,0.00428816,2085.7,2085.3,0.57299575]
[1771083688158,0.54160879,2085.7,2085.3,0.57299575]
[1771083689662,0.00428816,2085.7,2085.3,0.57299575]
[1771083690256,0.00428816,2085.7,2085.4,0.23984]
[1771083690460,19.12132063,2086.0,2085.5,0.57299575]
[1771083690756,0.53732063,2085.9,2085.5,0.57299575]
[1771083691558,0.54108453,2085.9,2085.5,0.57299575]
[1771083696464,0.0037639,2085.9,2085.5,0.57299575]
[1771083697464,0.5790922,2085.9,2085.4,0.77019065]
[1771083698459,0.0037639,2085.9,2085.5,0.53035065]
[1771083699664,0.5790922,2085.9,2085.5,0.53035065]
[1771083699865,0.5790922,2085.9,2085.4,0.77019065]
[1771083702569,0.5790922,2085.9,2085.4,0.23984]
[1771083703371,0.5790922,2085.9,2085.4,0.76869313]
[1771083704870,0.5790922,2085.9,2085.4,0.23984]
[1771083705164,0.5790922,2085.9,2085.4,0.76869313]
[1771083706069,0.5790922,2085.9,2085.5,0.52885313]
[1771083712780,0.5790922,2085.9,2085.4,0.76869313]
[1771083713374,0.5790922,2085.9,2085.5,0.52885313]
[1771083713983,0.5790922,2085.9,2085.4,0.76869313]
[1771083718589,0.0037639,2085.9,2085.5,0.52885313]
[1771083718791,18.7897639,2085.9,2085.5,0.52885313]
[1771083719087,19.36559382,2085.9,2085.5,0.52885313]
[1771083720084,0.57582992,2085.8,2085.5,0.52885313]
[1771083720384,0.57582992,2085.8,2085.4,0.76869313]
[1771083721692,0.57582992,2085.8,2085.5,0.5348683]
[1771083721984,19.34767432,2085.9,2085.5,0.5348683]
[1771083722290,18.7897639,2085.9,2085.7,0.5348683]
[1771083722491,18.7897639,2085.9,2085.7,0.5395574]
[1771083722892,41.35791042,2086.2,2085.7,0.5395574]
[1771083723185,19.38391042,2086.3,2085.9,0.5348683]
[1771083723386,18.826,2086.3,2085.9,0.5348683]
[1771083723784,0.55791042,2086.2,2085.9,0.5348683]
[1771083724487,59.63040322,2086.3,2085.9,0.5348683]
[1771083724691,60.18831364,2086.3,2085.9,0.5348683]
[1771083724989,59.63040322,2086.3,2085.9,0.5348683]
[1771083725195,0.55791042,2086.2,2085.8,0.7746683]
[1771083725493,0.55791042,2085.9,2085.5,0.5348683]
[1771083726790,0.55791042,2085.9,2085.5,0.5402323]
[1771083727495,0.55791042,2086.2,2085.6,0.23982]
[1771083727696,19.42191042,2086.2,2085.7,0.5348683]
[1771083727886,18.864,2086.2,2085.7,0.5348683]
[1771083728395,60.23731364,2086.3,2085.7,0.5348683]
[1771083729494,0.55791042,2086.2,2085.7,0.5348683]
[1771083730800,59.67940322,2086.3,2085.7,0.5348683]
[1771083731095,60.29031364,2086.3,2085.9,0.5348683]
[1771083731900,19.49031364,2086.3,2085.9,0.5348683]
[1771083732395,0.55791042,2086.2,2085.8,0.2398]
[1771083736602,0.55791042,2086.2,2085.8,0.7746683]
[1771083738699,18.93240322,2086.3,2085.9,0.5348683]
[1771083739002,19.49031364,2086.3,2085.9,0.5348683]
[1771083739194,0.55791042,2086.2,2085.9,0.5348683]
[1771083739705,19.02840322,2086.3,2085.9,0.5348683]
[1771083740002,19.58631364,2086.3,2085.9,0.5348683]
[1771083741806,0.55791042,2086.2,2085.9,0.5348683]
[1771083743707,19.02840322,2086.3,2085.9,0.5348683]
[1771083743904,0.56231364,2086.3,2085.8,0.2398]
[1771083744209,19.66331364,2086.3,2085.9,0.5348683]
[1771083745208,0.55791042,2086.2,2085.9,0.5348683]
[1771083745710,19.66331364,2086.3,2085.9,0.5348683]
[1771083747610,19.10540322,2086.3,2085.9,0.5348683]
[1771083747802,19.66331364,2086.3,2085.9,0.5348683]
[1771083748915,19.10540322,2086.3,2086.1,0.5348683]
[1771083749712,17.16209989,2086.3,2086.1,0.5348683]
[1771083749904,15.98070989,2086.3,2086.1,0.5348683]
[1771083750100,0.55791042,2086.5,2086.2,0.7746183]
[1771083750311,3.977,2086.5,2086.3,0.5348683]
[1771083750708,3.98060652,2086.5,2086.3,0.5348683]
[1771083751100,0.00360652,2086.5,2086.3,0.5348683]
[1771083752510,0.57336295,2087.0,2086.6,0.2397]
[1771083753213,0.57336295,2086.9,2086.6,0.2397]
[1771083753413,19.80136295,2087.2,2086.7,0.54882757]
[1771083753615,19.80511793,2087.2,2086.7,0.54882757]
[1771083753813,0.57336295,2087.1,2086.7,0.54882757]
[1771083755112,60.52195411,2087.2,2086.9,0.54882757]
[1771083755617,0.00375498,2087.2,2086.9,0.54882757]
[1771083756114,60.53919913,2087.5,2087.1,0.54882757]
[1771083756115,0.49019913,2087.5,2087.1,0.54882757]
[1771083756317,4.47095411,2087.6,2087.1,0.54882757]
[1771083756618,0.49395411,2087.5,2087.1,0.54882757]
[1771083756918,0.49395411,2087.5,2087.0,0.23966]
[1771083757118,0.49758213,2087.5,2087.0,0.24327562]
[1771083757518,0.49758213,2087.5,2087.0,0.79210319]
[1771083759215,1.43103078,2087.3,2086.6,0.54882757]
[1771083759414,0.48340034,2087.2,2086.6,0.54882757]
[1771083760119,0.48340034,2087.0,2086.6,0.54882757]
[1771083760320,0.48340034,2087.0,2086.6,0.55400912]
[1771083761017,0.00362802,2087.5,2086.8,0.54882757]
[1771083761222,19.75865435,2087.5,2086.8,0.54882757]
[1771083761721,0.48202633,2087.4,2086.8,0.54882757]
[1771083768127,19.27662802,2087.5,2087.0,0.52961142]
[1771083768321,0.48506046,2087.4,2087.0,0.52961142]
[1771083771131,0.48506046,2087.4,2086.9,0.76928142]
[1771083771331,0.50737087,2087.2,2086.9,0.23967]
[1771083776135,0.50557492,2087.4,2087.0,0.52961142]
[1771083776636,0.50557492,2087.4,2086.9,0.76928142]
[1771083778034,0.50557492,2087.4,2087.0,0.52961142]
[1771083778936,0.50557492,2087.4,2086.6,0.00518155]
[1771083778937,0.50557492,2087.4,2086.6,0.53479297]
[1771083779140,0.50557492,2087.4,2087.0,0.52961142]
[1771083779335,0.55112502,2087.3,2087.0,0.52961142]
[1771083779640,0.48921901,2087.4,2087.1,0.76926142]
[1771083779938,40.8,2087.6,2087.2,0.52961142]
[1771083780338,19.473,2087.7,2087.2,0.52961142]
[1771083780739,19.47793414,2087.7,2087.2,0.52961142]
[1771083780938,60.28245446,2087.7,2087.2,0.52961142]
[1771083783344,0.00253853,2087.6,2087.2,0.52961142]
[1771083783947,19.47793414,2087.7,2087.2,0.52961142]
[1771083784339,0.00493414,2087.7,2087.4,0.58435598]
[1771083784646,4.14e-06,2087.7,2087.4,0.58435598]
[1771083785243,4.14e-06,2087.7,2087.6,0.58477832]
[1771083786046,4.14e-06,2087.7,2087.5,0.82437832]
[1771083786847,40.80169386,2088.1,2087.6,0.58477832]
[1771083787039,0.00169386,2088.0,2087.6,0.58477832]
[1771083787241,40.8,2088.1,2087.6,0.58477832]
[1771083787443,19.559,2088.3,2087.6,0.58477832]
[1771083787644,19.56070589,2088.3,2087.6,0.58477832]
[1771083787949,19.56426736,2088.3,2087.6,0.58477832]
[1771083788648,19.56256147,2088.3,2087.6,0.58477832]
[1771083788847,0.00170589,2088.2,2087.6,0.58477832]
[1771083791048,19.56256147,2088.3,2087.6,0.58477832]
[1771083797466,19.56256147,2088.3,2087.8,0.58772664]
[1771083798565,19.56256147,2088.3,2088.0,0.58772664]
[1771083798958,0.00356147,2088.3,2088.0,0.58772664]
[1771083801063,0.01023109,2088.3,2088.0,0.58772664]
[1771083801265,0.01023109,2088.3,2087.9,0.82184044]
[1771083802069,0.00666962,2088.2,2087.9,0.82184044]
[1771083802563,0.00356147,2088.3,2088.0,0.58229044]
[1771083803066,0.00626518,2088.3,2088.0,0.58229044]
[1771083803268,0.00626518,2088.4,2088.0,0.58229044]
[1771083803769,0.00626518,2088.4,2087.9,0.82204266]
[1771083804269,0.01035101,2088.4,2087.9,0.82204266]
[1771083804467,0.00626518,2088.3,2087.9,0.82204266]
[1771083804667,0.00626518,2088.3,2088.0,0.58249266]
[1771083804868,0.00626518,2088.3,2087.9,0.23955]
[1771083805172,0.00626518,2088.3,2087.9,0.82204266]
[1771083806466,19.745,2088.3,2087.5,0.58562525]
[1771083807173,0.01222772,2088.2,2087.5,0.58562525]
[1771083808172,0.01222772,2088.2,2087.7,0.57951139]
[1771083808474,0.01222772,2088.2,2087.6,0.23959]
[1771083809676,0.01420374,2088.4,2087.7,0.5805663]
[1771083809876,19.77411791,2088.3,2087.7,0.5805663]
[1771083817579,0.01260049,2088.2,2087.7,0.5805663]
[1771083821281,19.77122216,2088.3,2087.7,0.5805663]
[1771083822187,0.00408583,2088.4,2087.7,0.5805663]
[1771083822376,19.85608583,2088.4,2087.7,0.5805663]
[1771083822580,19.86330799,2088.4,2087.7,0.5805663]
[1771083822985,0.00722216,2088.3,2087.7,0.5805663]
[1771083827688,0.00722216,2088.3,2087.6,0.8208443]
[1771083827982,0.00722216,2088.3,2087.6,0.23959]
[1771083828184,19.85608583,2088.4,2087.7,0.5812543]
[1771083828489,40.8,2088.3,2087.7,0.5812543]
[1771083828884,40.80842116,2088.3,2087.7,0.5812543]
[1771083829588,40.8,2088.3,2087.9,0.58119371]
[1771083829886,40.80854234,2088.3,2087.9,0.58119371]
[1771083831287,0.01815811,2088.2,2087.9,0.58119371]
[1771083833288,0.01815811,2088.2,2087.7,0.57539593]
[1771083833993,0.54460093,2088.0,2087.7,0.57539593]
[1771083834191,0.54460093,2088.0,2087.4,0.57539593]
[1771083835392,0.54460093,2087.8,2087.3,0.81501593]
[1771083835792,0.54460093,2087.8,2087.4,0.57539593]
[1771083836093,0.54460093,2087.8,2086.7,0.57539593]
[1771083837093,0.54460093,2087.8,2086.8,0.57539593]
[1771083838291,0.54460093,2087.8,2087.0,0.57539593]
[1771083838995,0.54460093,2087.7,2087.0,0.57539593]
[1771083840197,0.54460093,2087.6,2087.0,0.57539593]
[1771083844899,19.879,2087.8,2087.2,0.55726573]
[1771083845099,0.58023132,2087.7,2087.2,0.55726573]
[1771083857807,0.58023132,2087.6,2087.1,0.23965]
[1771083858006,0.58023132,2087.6,2087.1,0.79691573]
[1771083858308,0.58023132,2087.4,2087.1,0.23965]
[1771083859201,0.58023132,2087.2,2086.7,0.55726573]
[1771083859407,0.58023132,2087.0,2086.6,0.00518155]
[1771083860200,0.58023132,2087.0,2086.6,0.24488155]
[1771083861905,0.58023132,2087.0,2086.6,0.00518155]
[1771083863905,0.58023132,2087.0,2086.2,0.55726573]
[1771083864308,0.58023132,2086.8,2086.2,0.55726573]
[1771083864809,0.58023132,2086.7,2086.2,0.56174137]
[1771083871710,0.58023132,2086.7,2086.2,0.00447564]
[1771083873216,0.58023132,2086.7,2086.2,0.58888885]
[1771083874010,0.55889847,2086.8,2086.4,0.58441321]
[1771083881923,0.55889847,2086.8,2086.3,0.80249907]
[1771083882221,0.55889847,2086.8,2086.4,0.56275907]
[1771083882424,19.886,2087.0,2086.6,0.56275907]
[1771083882624,0.53220749,2086.9,2086.6,0.56275907]
[1771083883415,0.53777928,2086.9,2086.6,0.56275907]
[1771083884629,0.00557179,2086.9,2086.6,0.56275907]
[1771083885031,19.886,2087.0,2086.6,0.56275907]
[1771083885523,55.23520749,2087.2,2086.6,0.56275907]
[1771083885724,54.703,2087.2,2086.6,0.56275907]
[1771083885928,55.23520749,2087.2,2086.8,0.56275907]
[1771083886128,13.90713073,2087.2,2086.8,0.56275907]
[1771083886729,14.43933822,2087.2,2086.8,0.56275907]
[1771083887729,14.43933822,2087.2,2086.7,0.23969]
[1771083887730,0.53220749,2087.1,2086.7,0.23969]
[1771083888025,0.53220749,2087.1,2086.3,0.56275907]
[1771083888531,0.53220749,2086.9,2086.3,0.56275907]
[1771083890426,0.53220749,2086.9,2086.5,0.56275907]
[1771083891231,0.53220749,2087.1,2086.5,0.56275907]
[1771083895933,19.40967073,2087.2,2086.7,0.56275907]
[1771083896131,0.53220749,2087.7,2087.2,0.56275907]
[1771083896329,12.289,2088.1,2087.2,0.56275907]
[1771083896330,0.53220749,2087.8,2087.2,0.56275907]
[1771083897027,0.53644048,2087.8,2087.2,0.56275907]
[1771083902132,0.54430761,2087.8,2087.2,0.56275907]
[1771083908544,0.00423299,2087.8,2087.4,0.56276876]
[1771083909344,0.54430761,2087.8,2087.4,0.56276876]
[1771083913750,0.54430761,2087.8,2087.3,0.23962]
[1771083913941,0.54430761,2087.8,2087.3,0.80238876]
[1771083914146,0.54430761,2087.8,2087.4,0.56276876]
[1771083914346,0.54430761,2087.8,2087.3,0.80238876]
[1771083915244,0.54430761,2087.8,2087.1,0.56276876]
[1771083915554,0.54007462,2087.6,2086.8,0.23968]
[1771083915850,0.54007462,2087.4,2086.8,0.23968]
[1771083917453,0.54007462,2087.4,2086.9,0.56276876]
[1771083918450,0.54007462,2087.6,2086.9,0.56276876]
[1771083919544,0.54007462,2087.6,2086.8,0.80244876]
[1771083921055,0.54007462,2087.6,2086.9,0.56276876]
[1771083921452,0.54007462,2087.6,2086.8,0.23968]
[1771083921754,0.54007462,2087.6,2086.8,0.80244876]
[1771083922559,0.54007462,2087.6,2086.9,0.56276876]
[1771083923454,0.54007462,2087.6,2086.8,0.23968]
[1771083924754,0.54007462,2087.6,2086.8,0.80244876]
[1771083924959,0.54007462,2087.6,2086.9,0.56276876]
[1771083926056,0.54007462,2087.6,2086.8,0.80244876]
[1771083927859,0.54007462,2087.6,2086.8,0.23968]
[1771083928359,0.54007462,2087.6,2086.9,0.56276876]
[1771083931767,0.54007462,2087.6,2087.1,0.54690145]
[1771083933463,0.54007462,2087.6,2085.9,3.976]
[1771083933464,0.56470449,2087.4,2085.8,9.97076244]
[1771083933661,0.56470449,2086.6,2085.3,0.54690145]
[1771083933870,6.63619326,2087.3,2084.6,5.90244]
[1771083933871,0.56470449,2086.4,2085.5,0.54690145]
[1771083934063,40.8,2086.3,2085.7,0.54690145]
[1771083934561,0.56470449,2087.2,2085.9,0.54690145]
[1771083934765,0.56470449,2086.7,2085.9,0.54690145]
[1771083934967,40.8,2086.6,2085.9,0.54690145]
[1771083935166,0.56470449,2086.7,2085.9,0.54690145]
[1771083935866,0.00447748,2086.7,2085.9,0.54690145]
[1771083936062,0.00447748,2086.7,2086.0,0.23977]
[1771083936368,0.00447748,2086.7,2086.1,0.54690145]
[1771083938362,0.56470449,2087.1,2086.3,0.54690145]
[1771083939368,0.56845067,2087.1,2086.3,0.54690145]
[1771083943369,41.33782404,2087.0,2086.3,0.54690145]
[1771083945070,41.33782404,2087.0,2086.4,0.23973]
[1771083945271,41.33782404,2087.0,2086.5,0.53503976]
[1771083946470,0.53782404,2086.9,2086.5,0.53503976]
[1771083952968,41.33782404,2087.0,2086.5,0.53503976]
[1771083953272,0.53782404,2086.9,2086.5,0.53503976]
[1771083954969,40.80374618,2087.1,2086.5,0.53503976]
[1771083955175,0.53782404,2087.5,2086.7,0.53503976]
[1771083956165,41.34385594,2087.5,2086.9,0.53503976]
[1771083958679,41.34385594,2087.5,2087.1,0.53503976]
[1771083958979,0.53782404,2087.4,2087.1,0.53943609]
[1771083959775,0.53782404,2087.4,2087.0,0.23966]
[1771083959976,0.53782404,2087.4,2086.9,0.53503976]
[1771083960876,0.53782404,2087.4,2086.9,0.53891191]
[1771083961176,0.53782404,2087.4,2087.0,0.80222284]
[1771083961773,0.53782404,2087.4,2087.0,0.23966]
[1771083962879,0.53782404,2087.4,2087.0,0.80222284]
[1771083963475,0.54976156,2087.5,2087.1,0.56256284]
[1771083964480,0.0060319,2087.5,2087.1,0.56256284]
[1771083964677,0.54372966,2087.6,2087.1,0.56256284]
[1771083965780,0.54989955,2087.6,2087.1,0.56256284]
[1771083966586,0.00616989,2087.6,2087.1,0.56256284]
[1771083970388,0.54372966,2087.8,2087.3,0.56256284]
[1771083971389,0.54834864,2087.8,2087.3,0.56256284]
[1771083972583,0.00461898,2087.8,2087.3,0.56256284]
[1771083972989,0.54834864,2087.8,2087.3,0.56256284]
[1771083974185,0.00461898,2087.8,2087.3,0.56256284]
[1771083974886,0.54834864,2087.8,2087.3,0.56256284]
[1771083976792,0.00461898,2087.8,2087.3,0.56256284]
[1771083977296,0.54372966,2088.0,2087.5,0.56256284]
[1771083978098,0.54372966,2088.2,2087.7,0.56256284]
[1771083978392,0.5473466,2088.2,2087.7,0.56256284]
[1771083985395,0.54372966,2088.7,2087.9,0.56256284]
[1771083985596,0.54372966,2088.5,2088.1,0.56256284]
[1771083986399,0.54992544,2088.5,2088.1,0.56256284]
[1771083986897,0.00619578,2088.5,2088.1,0.56256284]
[1771083987295,0.54372966,2088.7,2088.3,0.56256284]
[1771083987698,7.508,2088.8,2088.3,0.56256284]
[1771083988401,7.51286456,2088.8,2088.3,0.56256284]
[1771083989400,0.00486456,2088.8,2088.3,0.56256284]
[1771083990302,0.54372966,2088.7,2088.2,0.80208284]
[1771083990504,0.54372966,2088.7,2088.3,0.56256284]
[1771083993101,0.54111708,2088.8,2088.4,0.2395]
[1771083993302,0.54111708,2088.8,2088.5,0.53699529]
[1771083993804,0.54111708,2088.8,2088.4,0.78089621]
[1771083994201,0.54111708,2088.8,2088.4,0.24390092]
[1771083995610,0.54111708,2088.8,2088.4,0.78089621]
[1771083997408,0.54111708,2088.8,2088.5,0.53699529]
[1771083999111,0.54111708,2088.8,2088.4,0.78089621]
[1771084000913,0.54111708,2088.8,2088.4,0.24390092]
[1771084001607,0.56415642,2088.7,2087.8,0.5445764]
[1771084001812,0.56415642,2088.5,2087.8,0.5445764]
[1771084002207,0.56415642,2088.5,2087.9,0.7841264]
[1771084002614,0.56415642,2088.5,2087.9,0.78771271]
[1771084003411,0.56415642,2088.3,2087.9,0.78771271]
[1771084003717,0.56415642,2088.3,2087.9,0.24313631]
[1771084003917,0.56415642,2088.4,2088.0,0.5445764]
[1771084004117,0.56415642,2088.6,2088.2,0.5445764]
[1771084004514,0.56415642,2088.6,2088.2,0.0445764]
[1771084004713,0.56902098,2088.8,2088.2,0.0445764]
[1771084004913,0.56415642,2088.7,2088.2,0.0445764]
[1771084006710,0.00486456,2088.8,2088.4,0.32570243]
[1771084006909,0.56902098,2088.8,2088.4,0.32570243]
[1771084007219,0.56902098,2088.8,2088.3,0.23951]
[1771084007717,0.56415642,2088.6,2087.9,0.31892232]
[1771084008425,0.56415642,2088.6,2088.0,0.23954]
[1771084008622,0.56415642,2088.6,2088.0,0.55487601]
[1771084009421,0.56415642,2088.6,2088.0,0.23954]
[1771084010229,0.56415642,2088.6,2088.2,0.23952]
[1771084010528,0.56415642,2088.7,2088.3,0.5445764]
[1771084010826,0.56415642,2088.7,2088.3,0.0458764]
[1771084017126,0.07721642,2088.7,2088.4,0.2395]
[1771084017332,0.56902098,2088.8,2088.4,0.7840764]
[1771084017534,0.56902098,2088.8,2088.4,0.2395]
[1771084020636,0.56902098,2088.8,2088.3,0.5445764]
[1771084021137,0.56902098,2088.8,2088.4,0.2395]
[1771084021636,0.56902098,2088.8,2088.1,0.56963335]
[1771084022231,0.56902098,2088.8,2088.4,0.2395]
[1771084022432,0.56902098,2088.8,2087.9,0.57321966]
[1771084024139,0.56902098,2088.8,2088.0,0.56963335]
[1771084025540,0.58057036,2088.6,2088.2,0.56963335]
[1771084027835,0.58057036,2088.6,2088.1,0.80916335]
[1771084028036,0.58057036,2088.6,2088.2,0.56963335]
[1771084028238,0.58057036,2088.6,2088.1,0.23953]
[1771084028741,0.58057036,2088.6,2087.9,0.00358631]
[1771084028941,0.58057036,2088.5,2087.7,0.56963335]
[1771084029736,0.58057036,2088.5,2087.2,0.56963335]
[1771084030042,0.58057036,2088.5,2087.4,0.56963335]
[1771084030832,0.58057036,2088.4,2087.4,0.56963335]
[1771084031239,0.58057036,2088.4,2087.6,0.56963335]
[1771084031440,0.58057036,2088.4,2087.8,0.56963335]
[1771084031838,0.58057036,2088.4,2087.7,0.80921335]
[1771084033446,0.58057036,2088.4,2087.7,0.23958]
[1771084034645,0.58057036,2088.4,2087.5,0.56963335]
[1771084037846,0.58057036,2088.4,2087.2,0.24423146]
[1771084037847,0.58057036,2088.2,2087.2,0.77372938]
[1771084038348,0.58057036,2088.0,2087.2,0.77372938]
[1771084039358,0.58057036,2088.0,2087.3,0.52945884]
[1771084042758,0.58057036,2088.0,2087.2,0.24423146]
[1771084043658,40.8,2087.9,2087.2,0.24423146]
[1771084043855,0.58057036,2087.8,2087.2,0.24423146]
[1771084045965,0.58057036,2087.7,2087.2,0.76844847]
[1771084046764,0.58057036,2087.7,2087.3,0.52421701]
[1771084046960,0.58057036,2087.8,2087.3,0.52421701]
[1771084048158,0.58057036,2087.8,2087.4,0.76161348]
[1771084048463,0.58057036,2087.8,2087.2,0.26621494]
[1771084048857,0.58057036,2087.8,2087.4,0.23961]
[1771084049062,0.58057036,2088.3,2087.5,0.26161348]
[1771084049362,0.58057036,2088.1,2087.5,0.26161348]
[1771084050767,0.58057036,2088.1,2087.4,0.49966753]
[1771084051273,0.58057036,2088.1,2087.5,0.26615368]
[1771084051571,0.58057036,2088.1,2087.4,0.23961]
[1771084054582,0.58575748,2087.7,2086.2,0.23975]
[1771084054773,0.58575748,2087.5,2086.2,0.23975]
[1771084055579,0.58575748,2087.5,2086.2,0.24350782]
[1771084056074,0.58575748,2087.5,2086.6,0.23969]
[1771084057278,0.58575748,2087.5,2086.7,0.01649762]
[1771084059681,0.58575748,2087.5,2086.9,0.01256898]
[1771084060181,0.56988352,2087.9,2087.3,0.57758974]
[1771084060680,0.56988352,2087.9,2087.3,0.07758974]
[1771084060880,0.56988352,2087.9,2087.5,0.0982835]
[1771084061680,0.56988352,2087.9,2087.4,0.33408209]
[1771084062181,0.56988352,2087.9,2087.5,0.09447209]
[1771084062581,0.56988352,2087.9,2087.4,0.23961]
[1771084066380,0.5853982,2088.0,2087.4,0.23961]
[1771084066582,41.3853982,2088.2,2087.4,0.23961]
[1771084066783,0.5853982,2088.2,2087.4,0.23961]
[1771084069185,0.5853982,2088.2,2087.4,0.24375106]
[1771084070990,0.5853982,2088.2,2087.4,0.23961]
[1771084071989,0.5853982,2088.2,2087.4,0.24748874]
[1771084073385,0.5853982,2088.2,2087.5,0.00806159]
[1771084074590,0.5853982,2088.2,2087.6,0.24765159]
[1771084076090,0.5853982,2088.2,2087.6,0.23959]
[1771084082195,0.5853982,2088.2,2087.4,0.00695056]
[1771084083796,0.5853982,2088.2,2087.1,0.23964]
[1771084083997,0.5853982,2088.2,2087.2,0.00345842]
[1771084086896,0.5853982,2088.2,2087.1,0.23964]
[1771084087192,0.5853982,2088.2,2087.1,0.24045361]
[1771084087495,40.8,2088.3,2087.2,0.00081361]
[1771084087496,0.58533547,2088.0,2087.2,0.00081361]
[1771084089000,0.58533547,2087.8,2087.2,0.00081361]
[1771084089703,0.58533547,2087.8,2087.1,0.23964]
[1771084089997,0.58533547,2087.8,2087.1,0.24135193]
[1771084091500,0.58504181,2087.1,2086.7,0.00140091]
[1771084091698,0.59081495,2087.1,2086.7,0.00140091]
[1771084091899,0.56086527,2087.5,2086.9,0.48250091]
[1771084092903,0.56649666,2087.5,2086.9,0.48250091]
[1771084093098,0.56649666,2087.5,2087.1,0.48476665]
[1771084093501,0.56649666,2087.5,2087.0,0.23966]
[1771084096307,0.58520726,2087.3,2087.0,0.23966]
[1771084096503,0.58520726,2087.3,2086.7,0.00107003]
[1771084096706,0.58520726,2087.4,2087.1,0.00107003]
[1771084097202,0.5890108,2087.5,2087.1,0.00107003]
[1771084098904,4.01231112,2088.2,2087.3,0.54796662]
[1771084098905,0.56086527,2087.7,2087.3,0.54796662]
[1771084099504,0.56086527,2087.7,2087.2,0.78759662]
[1771084099908,0.56523757,2087.7,2087.2,0.78759662]
[1771084101207,0.56523757,2087.7,2087.3,0.54796662]
[1771084101403,0.56086527,2087.8,2087.4,0.78757662]
[1771084101709,0.56086527,2087.8,2087.4,0.28757662]
[1771084102209,0.56086527,2087.8,2087.4,0.52718662]
[1771084102410,0.56573497,2087.8,2087.4,0.52718662]
[1771084107906,0.56086527,2088.0,2087.6,0.23959]
[1771084108109,0.56086527,2088.0,2087.7,0.54796662]
[1771084109009,0.56572107,2088.0,2087.7,0.55191414]
[1771084109404,0.56572107,2088.0,2087.7,0.05191414]
[1771084113917,0.56572107,2088.0,2087.7,0.00394752]
[1771084114511,0.56572107,2088.0,2087.7,0.54920673]
[1771084114717,0.0048558,2088.0,2087.7,0.54920673]
[1771084115214,0.55842512,2088.0,2087.7,0.54920673]
[1771084115817,0.55842512,2088.0,2087.7,0.00394752]
[1771084123522,0.55842512,2088.0,2087.7,0.57308581]
[1771084124221,0.55842512,2088.0,2087.7,0.00394752]
[1771084127224,0.55842512,2088.0,2087.7,0.57308581]
[1771084128518,0.55842512,2088.0,2087.6,0.60622018]
[1771084129425,0.55842512,2088.0,2087.6,0.60971414]
[1771084129626,0.55842512,2088.0,2087.6,0.24308396]
[1771084130126,0.30421272,2087.6,2086.0,12.95507472]
[1771084130322,0.30421272,2087.6,2084.8,42.53253482]
[1771084130323,0.54485081,2086.3,2085.6,0.56913829]
[1771084130517,4.51985081,2086.4,2085.8,0.56913829]
[1771084130723,4.51985081,2086.5,2085.8,0.56913829]
[1771084130923,0.54485081,2086.4,2086.0,0.56913829]
[1771084131126,0.55055789,2086.4,2086.0,0.57292471]
[1771084132317,1.42853443,2086.8,2086.0,0.57292471]
[1771084132318,4.3041974,2086.8,2086.2,0.56913829]
[1771084133027,0.3281974,2086.8,2086.2,0.56913829]
[1771084133227,0.33324319,2086.8,2086.2,0.56913829]
[1771084139027,0.33598205,2086.7,2086.2,0.56913829]
[1771084144328,0.33598205,2086.7,2086.0,0.58106087]
[1771084144531,0.33431721,2086.7,2086.0,0.58106087]
[1771084148139,0.00504579,2086.8,2086.4,0.57727445]
[1771084148443,20.23384504,2086.9,2086.4,0.57727445]
[1771084149430,0.35061794,2086.8,2086.4,0.57727445]
[1771084150738,0.35061794,2086.8,2086.3,0.81701445]
[1771084150944,0.35061794,2086.8,2086.3,0.57727445]
[1771084151139,0.35061794,2086.8,2086.4,0.57727445]
[1771084155046,20.4647073,2086.9,2086.5,0.81698445]
[1771084155244,0.5765558,2086.8,2086.5,0.81698445]
[1771084155541,0.5765558,2086.8,2086.5,0.31698445]
[1771084156244,0.5765558,2086.8,2086.5,0.55669445]
[1771084158446,19.8881515,2086.9,2086.5,0.55669445]
[1771084158645,0.5765558,2087.0,2086.5,0.55669445]
[1771084159542,0.57995443,2087.0,2086.5,0.55669445]
[1771084160844,0.57995443,2087.0,2086.1,0.57727445]
[1771084161746,0.5765558,2086.8,2086.1,0.57727445]
[1771084163745,0.5765558,2086.6,2086.1,0.57727445]
[1771084165044,20.4605558,2086.9,2086.3,0.57727445]
[1771084165250,0.5765558,2086.8,2086.3,0.57727445]
[1771084165447,0.5765558,2086.8,2086.3,0.07727445]
[1771084165846,0.5765558,2086.9,2086.3,0.07727445]
[1771084166242,0.5765558,2086.9,2086.5,0.57727445]
[1771084166649,0.5765558,2086.9,2086.5,0.07937445]
[1771084168557,0.5765558,2086.9,2086.4,0.40841327]
[1771084168756,0.5765558,2086.9,2086.4,0.23973]